bitfinex/quotes_SOLUSD_20250206
["timestamp","ask_amount","ask_price","bid_price","bid_amount"]
[1738883946395,0.13163648,190.57,190.55,0.063]
[1738883947466,0.13163648,190.57,190.56,9.52910398]
[1738883947864,0.13163648,190.57,190.56,14.77670398]
[1738883948063,0.13163648,190.57,190.56,15.02768398]
[1738883948291,0.13163648,190.57,190.56,30.30161251]
[1738883948467,0.11428573,190.58,190.57,15.92659398]
[1738883948667,0.11428573,190.58,190.57,30.5017488]
[1738883949070,0.11428573,190.58,190.57,34.42308463]
[1738883949488,0.11428573,190.58,190.57,20.09890981]
[1738883950299,0.11428573,190.58,190.57,25.34630981]
[1738883954486,0.09848964,190.59,190.58,0.12549]
[1738883954814,0.09087948,190.61,190.6,33.91380853]
[1738883955090,1.543e-05,190.62,190.61,0.37647]
[1738883955292,1.543e-05,190.62,190.61,9.90557398]
[1738883955495,1.543e-05,190.62,190.61,28.68921251]
[1738883955697,0.11372346,190.66,190.62,0.12549]
[1738883955898,0.11372346,190.66,190.63,0.37647]
[1738883956064,0.11372346,190.66,190.63,11.52917398]
[1738883956261,0.11372346,190.66,190.63,17.71587398]
[1738883956465,0.11372346,190.66,190.63,31.25321251]
[1738883956768,0.11372346,190.66,190.63,40.50640163]
[1738883957264,0.11372346,190.66,190.64,13.91380853]
[1738883957470,0.11372346,190.66,190.65,0.37647]
[1738883957777,7.868e-05,190.66,190.65,13.91380853]
[1738883958298,7.868e-05,190.66,190.65,151.11380853]
[1738883958477,0.13152951,190.68,190.67,0.50196]
[1738883958695,0.13152951,190.68,190.67,34.70018187]
[1738883959708,0.13152951,190.68,190.67,54.80573914]
[1738883960010,0.13152951,190.68,190.67,40.35653727]
[1738883960182,0.13152951,190.68,190.67,20.35653727]
[1738883964852,0.13152951,190.68,190.67,20.10555727]
[1738883965005,0.13152951,190.68,190.63,14.86095727]
[1738883965217,1.70482951,190.68,190.62,20.10695727]
[1738883965523,0.13152951,190.68,190.63,14.86095727]
[1738883967940,0.13152951,190.68,190.63,20.10655727]
[1738883968131,0.13152951,190.68,190.64,14.86095727]
[1738883968932,0.13152951,190.68,190.67,15.23742727]
[1738883969115,0.13152951,190.68,190.67,20.48202727]
[1738883969508,0.13152951,190.68,190.67,34.0193658]
[1738883970929,0.09903962,190.72,190.71,20.12549]
[1738883971227,0.02933141,190.74,190.71,34.86095727]
[1738883971426,0.02933141,190.74,190.73,14.86095727]
[1738883971634,0.02933141,190.74,190.73,15.23742727]
[1738883972035,0.02933141,190.74,190.73,28.7747658]
[1738883973137,0.02933141,190.74,190.73,34.0177658]
[1738883973931,0.02933141,190.74,190.73,20.10395727]
[1738883974137,0.02933141,190.74,190.73,14.86095727]
[1738883976135,0.02933141,190.74,190.73,20.10395727]
[1738883977020,0.02933141,190.74,190.73,20.48042727]
[1738883977225,0.02933141,190.74,190.73,14.86095727]
[1738883977419,0.02933141,190.74,190.72,14.86095727]
[1738883977815,0.10906565,190.73,190.72,14.86095727]
[1738883978643,0.10906565,190.73,190.72,20.10415727]
[1738883979344,0.10906565,190.73,190.72,14.86095727]
[1738883979727,0.10906565,190.73,190.7,14.86095727]
[1738883981420,0.10906565,190.73,190.71,14.86095727]
[1738883987257,0.10906565,190.73,190.71,20.10435727]
[1738883987426,0.10906565,190.73,190.72,14.86095727]
[1738883988852,0.10906565,190.73,190.72,20.10415727]
[1738883990829,0.10906565,190.73,190.72,20.35513727]
[1738883991029,0.10906565,190.73,190.72,20.48062727]
[1738883991329,0.10906565,190.73,190.72,34.80418339]
[1738883992233,0.1258935,190.74,190.73,0.12549]
[1738883992433,1e-08,190.74,190.73,28.7747658]
[1738883992749,1e-08,190.74,190.73,34.0177658]
[1738883993648,0.11299616,190.82,190.77,20.12549]
[1738883993840,0.03,190.86,190.82,0.25098]
[1738883994162,0.03,190.86,190.83,15.11193727]
[1738883994656,0.03,190.86,190.83,20.47762727]
[1738883995042,0.03,190.86,190.83,34.0149658]
[1738883995976,0.03,190.86,190.83,5.2402]
[1738883996144,0.03,190.86,190.82,14.86095727]
[1738883996457,0.03,190.86,190.81,14.86095727]
[1738883996665,0.03,190.86,190.8,14.86095727]
[1738883997964,0.11438374,190.81,190.8,14.86095727]
[1738884000566,0.11438374,190.81,190.8,48.87672307]
[1738884000768,8.374e-05,190.81,190.8,48.87672307]
[1738884002963,0.13072379,190.84,190.8,48.87672307]
[1738884003263,5.9276,190.96,190.8,48.87672307]
[1738884003264,7.6614,191.0,190.89,20.25098]
[1738884003467,9.2321,191.0,190.95,14.86095727]
[1738884003647,9.2321,191.0,190.93,14.86095727]
[1738884003850,7.6614,191.0,190.94,14.86095727]
[1738884005171,7.6614,191.0,190.92,14.86095727]
[1738884005478,22.52235727,191.0,190.93,14.86095727]
[1738884005663,22.52235727,191.0,190.91,0.25098]
[1738884005664,14.86095727,190.99,190.91,14.86095727]
[1738884005865,14.86095727,190.99,190.82,2.0]
[1738884005866,14.86095727,190.96,190.9,14.86095727]
[1738884007067,14.86095727,190.98,190.9,14.86095727]
[1738884007254,14.86095727,190.98,190.92,14.86095727]
[1738884007877,22.52235727,191.0,190.92,14.86095727]
[1738884008244,14.86095727,190.99,190.92,14.86095727]
[1738884010465,7.6614,191.0,190.92,14.86095727]
[1738884010666,7.6614,191.0,190.92,20.09865727]
[1738884012078,9.232,191.0,190.92,20.09865727]
[1738884012584,14.86095727,190.95,190.88,20.09955727]
[1738884012744,14.86095727,190.93,190.86,14.86095727]
[1738884012940,14.86095727,190.92,190.85,14.86095727]
[1738884013971,16.43225727,190.92,190.85,14.86095727]
[1738884015243,14.86095727,190.88,190.81,14.86095727]
[1738884016276,14.86095727,190.86,190.78,14.86095727]
[1738884016583,14.86095727,190.85,190.77,14.86095727]
[1738884016762,34.86095727,190.86,190.78,14.86095727]
[1738884017149,34.86095727,190.86,190.8,0.063]
[1738884017572,20.0,190.86,190.8,0.063]
[1738884017881,0.10517576,190.81,190.8,0.063]
[1738884019278,0.10517576,190.81,190.8,14.92395727]
[1738884019461,0.10517576,190.81,190.8,0.063]
[1738884026597,16.53833303,190.81,190.8,0.063]
[1738884028487,0.10517576,190.81,190.8,0.063]
[1738884037898,0.20220572,190.81,190.8,0.063]
[1738884039303,0.09702996,190.81,190.8,0.063]
[1738884041308,0.09702996,190.81,190.8,14.92395727]
[1738884041984,0.09702996,190.81,190.8,15.17493727]
[1738884042191,0.10089189,190.82,190.81,0.12549]
[1738884042398,0.10089189,190.82,190.81,29.56059535]
[1738884042696,0.10089189,190.82,190.81,34.80139535]
[1738884043898,0.09844449,190.84,190.83,20.25098]
[1738884044198,0.09844449,190.84,190.83,54.7757658]
[1738884045289,0.09844449,190.84,190.83,60.0159658]
[1738884048201,0.09844449,190.84,190.83,46.35313727]
[1738884048381,0.09844449,190.84,190.83,20.35213727]
[1738884048578,0.09844449,190.84,190.83,20.10115727]
[1738884048801,0.09844449,190.84,190.8,0.063]
[1738884049399,1.67044449,190.84,190.8,0.063]
[1738884049797,14.86095727,190.83,190.8,0.063]
[1738884050110,14.95940176,190.84,190.8,0.063]
[1738884050407,16.53140176,190.84,190.8,0.063]
[1738884052006,14.95940176,190.84,190.8,0.063]
[1738884052588,14.86095727,190.82,190.8,0.063]
[1738884054197,16.43305727,190.82,190.8,0.063]
[1738884056998,20.62684853,190.81,190.8,0.063]
[1738884057818,20.73945012,190.81,190.8,0.063]
[1738884058204,24.89595012,190.81,190.8,0.063]
[1738884060003,22.89595012,190.81,190.8,0.063]
[1738884060493,24.89595012,190.81,190.8,0.063]
[1738884061111,22.89595012,190.81,190.8,0.063]
[1738884061313,3.26910159,190.81,190.8,0.063]
[1738884062197,1.68480159,190.81,190.8,0.063]
[1738884063111,0.11260159,190.81,190.8,0.063]
[1738884064321,14.97355886,190.81,190.8,0.063]
[1738884064524,16.54575886,190.81,190.8,0.063]
[1738884066630,98.64575886,190.81,190.8,0.063]
[1738884066828,113.05760739,190.81,190.8,0.063]
[1738884067035,14.86095727,190.74,190.71,0.063]
[1738884067338,14.86095727,190.73,190.71,0.063]
[1738884068021,16.43385727,190.73,190.71,0.063]
[1738884068628,4.9313,190.78,190.71,0.063]
[1738884068629,1.5728,190.74,190.71,0.063]
[1738884070234,14.86095727,190.76,190.71,0.063]
[1738884070396,16.43365727,190.76,190.71,0.063]
[1738884070726,14.86095727,190.75,190.71,0.063]
[1738884071100,14.86095727,190.74,190.71,0.063]
[1738884071310,16.43375727,190.74,190.71,0.063]
[1738884072126,1.5728,190.74,190.71,0.063]
[1738884072308,14.86095727,190.78,190.71,14.92395727]
[1738884072626,16.43335727,190.79,190.71,14.92395727]
[1738884073011,14.86095727,190.78,190.71,14.92395727]
[1738884073324,14.86095727,190.79,190.71,20.16735727]
[1738884073509,1.5724,190.79,190.73,14.86095727]
[1738884075326,96.96095727,190.8,190.73,20.10385727]
[1738884075524,82.1,190.8,190.74,14.86095727]
[1738884076232,82.1,190.8,190.75,14.86095727]
[1738884076531,0.11260159,190.81,190.75,14.86095727]
[1738884076828,0.11260159,190.81,190.75,20.10325727]
[1738884077218,0.11260159,190.81,190.76,14.86095727]
[1738884077909,0.11371854,190.77,190.76,14.86095727]
[1738884078344,0.11325909,190.8,190.77,0.25098]
[1738884078510,0.11325909,190.8,190.79,14.86095727]
[1738884079013,0.11325909,190.8,190.79,15.23742727]
[1738884079222,0.11325909,190.8,190.79,15.11193727]
[1738884080412,0.11325909,190.8,190.79,20.35323727]
[1738884081234,0.11325909,190.8,190.79,20.10225727]
[1738884081441,0.11325909,190.8,190.76,14.86095727]
[1738884081645,0.11325909,190.8,190.75,20.10335727]
[1738884082218,0.11325909,190.8,190.76,14.86095727]
[1738884082464,0.11325909,190.8,190.76,20.10295727]
[1738884084541,0.11325909,190.8,190.74,6.8486]
[1738884084724,14.86095727,190.78,190.71,6.161]
[1738884084933,14.86095727,190.77,190.71,0.063]
[1738884085741,14.86095727,190.74,190.71,0.063]
[1738884086510,14.86095727,190.75,190.71,0.063]
[1738884088937,1.5728,190.74,190.71,0.063]
[1738884089617,16.43365727,190.75,190.71,0.063]
[1738884097868,0.10225114,190.72,190.71,0.063]
[1738884101256,16.53610841,190.72,190.71,0.063]
[1738884104647,30.94795694,190.72,190.71,0.063]
[1738884106554,30.94795694,190.72,190.71,0.063]
[1738884107174,32.19893694,190.72,190.71,0.0001]
[1738884107336,47.18538421,190.72,190.71,0.0001]
[1738884107658,1.0,190.67,190.61,0.063]
[1738884107866,14.86095727,190.62,190.61,0.063]
[1738884108366,29.2728058,190.62,190.61,0.063]
[1738884109683,30.8466058,190.62,190.61,0.063]
[1738884110099,15.53733853,190.61,190.6,0.063]
[1738884110374,45.25925307,190.61,190.6,0.0001]
[1738884110764,43.25925307,190.61,190.6,0.0001]
[1738884111164,28.2728058,190.61,190.6,0.0001]
[1738884111574,29.8466058,190.61,190.6,0.0001]
[1738884113388,29.8466058,190.61,190.55,0.063]
[1738884113389,13.41184853,190.56,190.55,0.063]
[1738884113598,14.86095727,190.57,190.55,0.063]
[1738884114159,6.5085,190.61,190.55,0.063]
[1738884114160,14.86095727,190.56,190.55,0.063]
[1738884115658,16.43525727,190.56,190.55,0.063]
[1738884117880,16.53932175,190.56,190.55,0.063]
[1738884120284,0.10406448,190.56,190.55,0.063]
[1738884120663,1.67836448,190.56,190.55,0.063]
[1738884120885,0.10406448,190.56,190.55,0.063]
[1738884125269,14.96502175,190.56,190.55,0.063]
[1738884125580,16.53932175,190.56,190.55,0.063]
[1738884126883,0.10406448,190.56,190.55,0.063]
[1738884128289,0.10406448,190.56,190.55,14.92395727]
[1738884128987,0.10406448,190.56,190.55,20.42283727]
[1738884129191,0.10406448,190.56,190.55,20.54832727]
[1738884129394,0.10406448,190.56,190.55,36.41401172]
[1738884129786,0.09492379,190.58,190.56,14.91380853]
[1738884130011,3.177e-05,190.59,190.58,0.37647]
[1738884130179,3.177e-05,190.59,190.58,15.23742727]
[1738884130495,7.2e-07,190.6,190.59,14.66282853]
[1738884130675,7.2e-07,190.6,190.59,32.1028048]
[1738884130876,7.067e-05,190.61,190.6,14.91380853]
[1738884131087,14.89095727,190.72,190.6,49.88222307]
[1738884131290,7.218e-05,190.62,190.61,30.56134103]
[1738884131678,2.907e-05,190.63,190.62,14.91380853]
[1738884131874,2.907e-05,190.63,190.62,30.7747658]
[1738884132086,2.907e-05,190.63,190.62,36.2499658]
[1738884132287,0.03,190.72,190.63,29.7747658]
[1738884132498,0.03,190.72,190.63,30.56124591]
[1738884133087,0.03,190.72,190.63,35.80694591]
[1738884133295,0.03,190.72,190.67,20.50196]
[1738884133501,0.03,190.72,190.71,14.86095727]
[1738884133796,0.03,190.72,190.67,1.63]
[1738884134099,0.03,190.72,190.67,16.49095727]
[1738884134407,14.89095727,190.72,190.65,14.86095727]
[1738884134695,14.89095727,190.72,190.6,14.86095727]
[1738884134696,14.86095727,190.67,190.6,14.86095727]
[1738884134893,14.86095727,190.65,190.58,20.10785727]
[1738884135093,14.86095727,190.63,190.57,8.0966]
[1738884135289,14.86095727,190.62,190.55,14.92395727]
[1738884135475,14.86095727,190.61,190.55,0.063]
[1738884135684,14.86095727,190.6,190.55,0.063]
[1738884135895,14.86095727,190.58,190.55,0.063]
[1738884136584,14.86095727,190.59,190.55,0.063]
[1738884136796,14.86095727,190.6,190.55,0.063]
[1738884137880,0.09517163,190.56,190.55,0.063]
[1738884143730,16.5304289,190.56,190.55,0.063]
[1738884146088,17.5304289,190.56,190.55,0.063]
[1738884153522,16.5304289,190.56,190.55,0.063]
[1738884154352,17.5304289,190.56,190.55,0.063]
[1738884154505,114.16776743,190.56,190.55,0.0001]
[1738884154700,114.16776743,190.56,190.53,0.0001]
[1738884154701,34.41184853,190.54,190.53,0.0001]
[1738884155000,49.2728058,190.54,190.53,0.0001]
[1738884155709,22.12549,190.51,190.5,0.063]
[1738884155910,51.84740454,190.51,190.5,0.0001]
[1738884156143,53.42210454,190.51,190.5,0.0001]
[1738884157428,14.66282853,190.48,190.47,0.0001]
[1738884157637,28.2728058,190.48,190.47,0.0001]
[1738884157941,28.50146708,190.48,190.47,0.0001]
[1738884158343,30.07636708,190.48,190.47,0.0001]
[1738884160609,16.53902855,190.48,190.47,0.0001]
[1738884163945,0.10317128,190.48,190.47,0.0001]
[1738884171339,0.13317128,190.48,190.47,0.0001]
[1738884173120,0.13317128,190.48,190.47,14.86105727]
[1738884173844,0.13317128,190.48,190.47,20.11115727]
[1738884174046,0.13317128,190.48,190.47,20.36213727]
[1738884174226,0.11036132,190.49,190.48,0.37647]
[1738884174424,0.11036132,190.49,190.48,15.23742727]
[1738884174614,0.11036132,190.49,190.48,28.7747658]
[1738884174809,0.10834259,190.5,190.49,13.78831853]
[1738884175014,0.10834259,190.5,190.49,29.43635311]
[1738884175428,0.10834259,190.5,190.49,30.56184311]
[1738884175646,4.259e-05,190.5,190.49,30.56184311]
[1738884175948,2.36e-05,190.51,190.5,14.91380853]
[1738884176143,0.10123994,190.52,190.51,21.73731853]
[1738884176346,3.994e-05,190.52,190.51,38.51073959]
[1738884176730,4.813e-05,190.54,190.53,1.0]
[1738884177054,4.813e-05,190.54,190.53,29.56166191]
[1738884177927,0.11285962,190.54,190.53,34.81016191]
[1738884178320,0.11285962,190.54,190.53,33.8977758]
[1738884178720,0.11285962,190.54,190.53,34.68484262]
[1738884179349,0.11281149,190.54,190.53,34.68484262]
[1738884180921,0.11281149,190.54,190.53,20.36043727]
[1738884181147,0.11281149,190.54,190.53,14.86095727]
[1738884181446,0.11281149,190.54,190.51,28.05885727]
[1738884182823,0.11281149,190.54,190.53,14.86095727]
[1738884183132,0.14281149,190.54,190.53,14.86095727]
[1738884183329,0.14281149,190.54,190.52,14.86095727]
[1738884183531,0.14281149,190.54,190.51,13.198]
[1738884183761,0.14281149,190.54,190.51,1.5398]
[1738884184340,0.14281149,190.54,190.49,20.11025727]
[1738884184653,0.14281149,190.54,190.49,5.2493]
[1738884185383,1.71731149,190.54,190.48,14.86095727]
[1738884185943,15.00376876,190.54,190.47,14.86105727]
[1738884186149,14.86095727,190.53,190.47,0.0001]
[1738884186562,16.57826876,190.54,190.47,0.0001]
[1738884187374,0.14281149,190.54,190.48,14.86095727]
[1738884187840,0.14281149,190.54,190.47,5.2501]
[1738884187841,0.14281149,190.54,190.47,20.11105727]
[1738884190577,0.14281149,190.54,190.48,0.25098]
[1738884190745,0.14281149,190.54,190.51,14.86095727]
[1738884192577,0.14281149,190.54,190.5,14.86095727]
[1738884192759,0.14281149,190.54,190.51,5.249]
[1738884193088,0.14281149,190.54,190.53,14.86095727]
[1738884195573,0.14281149,190.54,190.53,20.10945727]
[1738884196284,0.14281149,190.54,190.53,20.36043727]
[1738884197474,0.14281149,190.54,190.53,20.23494727]
[1738884197662,0.14281149,190.54,190.5,14.86095727]
[1738884197864,0.24993021,190.54,190.5,14.86095727]
[1738884198577,0.24993021,190.54,190.49,20.11055727]
[1738884199156,0.24993021,190.54,190.5,14.86095727]
[1738884199355,0.13711872,190.54,190.5,14.86095727]
[1738884199786,0.13711872,190.54,190.52,14.86095727]
[1738884199967,0.13711872,190.54,190.51,20.10995727]
[1738884201463,0.13711872,190.54,190.51,14.86095727]
[1738884201669,0.13711872,190.54,190.49,14.86095727]
[1738884201892,16.57247599,190.54,190.47,14.86105727]
[1738884202061,16.57247599,190.54,190.47,0.0001]
[1738884202689,14.86095727,190.51,190.47,0.0001]
[1738884202856,14.86095727,190.5,190.47,0.0001]
[1738884205282,14.86095727,190.49,190.47,0.0001]
[1738884205486,14.86095727,190.48,190.47,0.0001]
[1738884207064,16.43585727,190.48,190.47,0.0001]
[1738884207258,96.96095727,190.49,190.47,0.0001]
[1738884207461,82.1,190.49,190.47,0.0001]
[1738884207987,96.96095727,190.49,190.47,0.0001]
[1738884208165,98.53575727,190.49,190.47,0.0001]
[1738884209592,14.86095727,190.48,190.47,0.0001]
[1738884211266,16.43585727,190.48,190.47,0.0001]
[1738884215477,29.9731958,190.48,190.47,0.0001]
[1738884216388,16.43585727,190.48,190.47,0.0001]
[1738884217978,16.53794644,190.48,190.47,0.0001]
[1738884228611,31.21973994,190.48,190.47,0.0001]
[1738884232318,45.00805847,190.48,190.47,0.0001]
[1738884232623,24.0800893,190.46,190.45,0.0001]
[1738884232803,25.0800893,190.46,190.45,0.0001]
[1738884233504,14.53733853,190.44,190.42,0.063]
[1738884233705,9.54275077,190.43,190.42,0.063]
[1738884234624,11.11805077,190.43,190.42,0.063]
[1738884234995,31.11805077,190.43,190.42,0.063]
[1738884235204,11.11805077,190.43,190.42,0.063]
[1738884235402,0.12549,190.38,190.36,0.063]
[1738884235619,9.54275077,190.37,190.36,0.063]
[1738884235817,23.0800893,190.37,190.36,0.063]
[1738884236297,23.0800893,190.37,190.36,0.0001]
[1738884236504,24.6558893,190.37,190.36,0.0001]
[1738884237824,24.76072397,190.37,190.36,0.0001]
[1738884238615,30.14774229,190.37,190.36,0.0001]
[1738884239305,16.61040376,190.37,190.36,0.0001]
[1738884241114,30.14774229,190.37,190.36,0.0001]
[1738884243549,31.14774229,190.37,190.36,0.0001]
[1738884246116,31.14774229,190.37,190.35,0.0001]
[1738884246117,1.25098,190.36,190.35,0.0001]
[1738884246463,17.18074909,190.36,190.35,0.0001]
[1738884247427,18.75664909,190.36,190.35,0.0001]
[1738884248227,20.07211296,190.36,190.35,0.0001]
[1738884249742,23.14729184,190.36,190.35,0.0001]
[1738884249942,20.0,190.29,190.27,0.063]
[1738884250149,14.92976909,190.28,190.27,0.063]
[1738884250527,34.92976909,190.29,190.27,0.063]
[1738884251037,1.31546387,190.28,190.27,0.063]
[1738884251430,5.96724275,190.28,190.27,0.063]
[1738884253259,4.39064275,190.28,190.27,0.063]
[1738884254259,1.31546387,190.28,190.27,0.063]
[1738884254436,1.5764,190.3,190.27,0.063]
[1738884256046,1.5766,190.28,190.27,0.063]
[1738884256242,16.50636909,190.28,190.27,0.063]
[1738884256657,31.04370762,190.28,190.27,0.0001]
[1738884257045,34.11622802,190.28,190.27,0.0001]
[1738884257349,35.43193154,190.28,190.27,0.0001]
[1738884257936,35.53316159,190.28,190.27,0.0001]
[1738884258739,30.16905863,190.28,190.27,0.0001]
[1738884259239,20.0,190.24,190.16,1.6716]
[1738884259563,9.56566613,190.19,190.16,1.6716]
[1738884259762,9.56566613,190.17,190.16,0.03]
[1738884260781,20.0,190.1,190.07,0.03]
[1738884260942,9.56566613,190.08,190.07,0.03]
[1738884261275,1.5782,190.08,190.07,0.03]
[1738884262571,9.56566613,190.12,190.07,0.03]
[1738884262866,1.31570352,190.08,190.07,0.03]
[1738884263951,1.31570352,190.1,190.07,0.03]
[1738884265775,20.0,190.08,190.07,0.03]
[1738884265961,16.54093827,190.08,190.07,0.03]
[1738884266749,17.54093827,190.08,190.07,0.03]
[1738884267762,31.39398032,190.08,190.07,0.03]
[1738884267958,35.63398032,190.08,190.07,0.03]
[1738884268360,36.63398032,190.08,190.07,0.03]
[1738884269679,34.3182768,190.08,190.07,0.03]
[1738884270052,35.63554276,190.08,190.07,0.03]
[1738884270565,35.88652276,190.08,190.07,0.03]
[1738884270768,34.96273827,190.04,189.98,1.5299]
[1738884271172,20.0,190.04,189.99,14.96273827]
[1738884272050,34.96273827,190.04,189.97,14.96273827]
[1738884272255,14.96273827,190.02,189.95,7.5429]
[1738884272475,14.96273827,190.01,189.95,7.5429]
[1738884272685,34.96273827,190.02,189.95,7.5429]
[1738884272985,14.96273827,190.01,189.95,7.5429]
[1738884274176,1.5788,190.01,189.95,7.5429]
[1738884274468,17.85880423,190.01,189.93,14.96273827]
[1738884274647,17.85880423,190.01,189.92,14.96273827]
[1738884275051,17.85880423,190.01,190.0,1.03]
[1738884276766,1.31726596,190.01,190.0,1.03]
[1738884277071,21.31726596,190.01,190.0,1.03]
[1738884277281,37.85880423,190.01,190.0,1.03]
[1738884277867,37.95356412,190.01,190.0,1.03]
[1738884278078,2.99082585,190.01,190.0,1.03]
[1738884278378,3.30272328,190.01,190.0,1.03]
[1738884278574,18.26546155,190.01,190.0,1.03]
[1738884279660,38.26546155,190.01,190.0,1.03]
[1738884280261,20.0,189.98,189.88,23.06863827]
[1738884280462,14.96273827,189.93,189.88,8.1059]
[1738884281778,1.31726596,189.92,189.88,8.1059]
[1738884282161,1.31726596,189.92,189.87,0.03]
[1738884282162,16.28000423,189.92,189.87,0.03]
[1738884282362,14.96273827,189.91,189.87,0.03]
[1738884282763,36.28000423,189.92,189.87,0.03]
[1738884283062,1.31726596,189.91,189.87,0.03]
[1738884283772,1.31726596,189.91,189.9,14.96273827]
[1738884284187,1.31726596,189.91,189.9,23.10503827]
[1738884284485,0.31189743,189.94,189.9,23.10503827]
[1738884284662,0.31189743,189.94,189.9,8.1423]
[1738884285675,0.31189743,189.94,189.9,23.10503827]
[1738884285983,1.31768757,189.93,189.91,14.96273827]
[1738884286382,1.31768757,189.93,189.92,14.96273827]
[1738884287576,1.31768757,189.98,189.92,14.96273827]
[1738884288273,2.89678757,189.98,189.92,14.96273827]
[1738884288470,17.85952584,189.98,189.91,20.22813827]
[1738884289187,17.85952584,189.98,189.91,5.2654]
[1738884290167,17.85952584,189.98,189.9,1.686]
[1738884290168,16.54203827,189.95,189.9,1.686]
[1738884290678,1.5793,189.95,189.9,1.686]
[1738884290881,1.31768757,189.94,189.9,1.686]
[1738884291267,14.96273827,189.92,189.9,0.03]
[1738884291468,14.96273827,189.91,189.9,0.03]
[1738884291878,1.0,189.87,189.81,0.03]
[1738884292073,20.0,189.82,189.81,0.03]
[1738884292496,34.96273827,189.82,189.81,0.03]
[1738884293188,20.0,189.78,189.71,0.03]
[1738884293379,14.96273827,189.77,189.71,0.03]
[1738884294681,21.62761612,189.77,189.71,0.03]
[1738884295392,21.62761612,189.77,189.71,21.65761612]
[1738884295577,21.62761612,189.8,189.73,21.62761612]
[1738884296589,21.62761612,189.8,189.72,21.62761612]
[1738884296789,21.62761612,189.8,189.72,26.89831612]
[1738884297293,21.62761612,189.79,189.72,26.89831612]
[1738884297999,0.1086934,189.73,189.72,5.2707]
[1738884298291,0.1086934,189.73,189.72,26.89831612]
[1738884299594,0.1086934,189.73,189.71,0.03]
[1738884299778,0.1086934,189.73,189.72,0.03]
[1738884302606,21.73630952,189.73,189.72,0.03]
[1738884303098,23.05547595,189.73,189.72,0.03]
[1738884303395,39.04842448,189.73,189.72,0.03]
[1738884304289,60.6760406,189.73,189.72,0.03]
[1738884304488,91.0525106,189.73,189.72,0.03]
[1738884304685,20.0,189.7,189.59,26.90211612]
[1738884304894,21.62761612,189.66,189.59,26.90211612]
[1738884305588,21.62761612,189.66,189.59,5.2745]
[1738884305782,21.62761612,189.67,189.59,26.90211612]
[1738884305988,21.62761612,189.68,189.61,21.62761612]
[1738884306193,1.31916643,189.65,189.6,21.62761612]
[1738884306384,1.31916643,189.65,189.59,26.90211612]
[1738884307798,23.20921612,189.67,189.59,26.90211612]
[1738884308597,21.62761612,189.67,189.6,21.62761612]
[1738884308900,21.62761612,189.67,189.59,26.90211612]
[1738884309101,1.31964725,189.66,189.59,26.90211612]
[1738884311001,1.31964725,189.65,189.59,26.90211612]
[1738884311882,22.94726337,189.65,189.58,21.62761612]
[1738884312175,1.31964725,189.65,189.58,21.62761612]
[1738884312379,1.31964725,189.65,189.59,0.03]
[1738884312606,1.31964725,189.65,189.59,21.65761612]
[1738884312900,23.20931612,189.67,189.59,21.65761612]
[1738884313103,23.20931612,189.67,189.6,5.2742]
[1738884314199,1.31965371,189.66,189.6,5.2742]
[1738884315099,1.31965371,189.66,189.61,21.62761612]
[1738884315803,1.31965371,189.66,189.6,26.90181612]
[1738884316023,21.62761612,189.66,189.6,5.2742]
[1738884316222,21.62761612,189.65,189.6,5.2742]
[1738884316517,21.62761612,189.66,189.6,5.2742]
[1738884316716,16.43299574,189.67,189.6,5.2742]
[1738884317320,1.31965371,189.67,189.6,5.2742]
[1738884317499,1.31965371,189.67,189.63,13.53164203]
[1738884317711,1.31965371,189.67,189.62,13.53164203]
[1738884317890,0.10121488,189.64,189.62,13.53164203]
[1738884318610,0.10121488,189.64,189.63,13.53164203]
[1738884319505,0.10121488,189.64,189.63,18.80504203]
[1738884319900,0.11340519,189.66,189.63,38.48478406]
[1738884320108,0.11340519,189.66,189.65,13.53164203]
[1738884321499,0.11340519,189.66,189.65,18.80444203]
[1738884322499,0.11340519,189.66,189.65,5.2728]
[1738884323517,0.11340519,189.66,189.65,13.53164203]
[1738884324521,0.11340519,189.66,189.64,5.2731]
[1738884324898,0.11340519,189.66,189.62,5.2736]
[1738884325518,0.11340519,189.66,189.6,13.53164203]
[1738884325694,0.11340519,189.66,189.65,0.03]
[1738884327418,13.64504722,189.66,189.65,0.03]
[1738884328392,14.96473221,189.66,189.65,0.03]
[1738884332128,1.43309018,189.66,189.65,0.03]
[1738884333698,14.96473221,189.66,189.65,0.03]